Workbook

Sheet Start
B1: INFORMACJE O TYM SZABLONIE
B2: Ten szablon umożliwia tworzenie budżetu na marketing kanałowy.
B3: Wprowadź planowaną sprzedaż dla każdego miesiąca i inne szczegóły w tabelach.
B4: Sumy są obliczane automatycznie, a wykresy przebiegu w czasie są aktualizowane.
B5: Uwaga:
B6: W kolumnie A w arkuszu BUDŻET NA MARKETING KANAŁOWY podano dodatkowe instrukcje. Ten tekst celowo został ukryty. Aby usunąć tekst, zaznacz kolumnę A, a następnie naciśnij klawisz DELETE. Aby odkryć tekst, zaznacz kolumnę A, a następnie zmień kolor czcionki.
B7: Aby uzyskać więcej informacji o tabelach, w tabeli naciśnij klawisz SHIFT, a następnie F10, wybierz opcję TABELA, a następnie TEKST ALTERNATYWNY.

Sheet Budżet na marketing kanałowy
A1: W tym arkuszu utwórz budżet na marketing kanałowy. W komórce z prawej strony znajduje się tytuł tego arkusza. W komórkach w tej kolumnie podano przydatne instrukcje. Naciśnij strzałkę w dół, aby rozpocząć pracę. W komórce z prawej strony znajduje się tytuł tego arkusza. | B1: BUDŻET NA MARKETING KANAŁOWY
A2: Etykiety Stawka i Miesiące znajdują się w tym wierszu w komórkach od C2 do O2, a etykieta Suma znajduje się w komórce Q2. | C2: Stawka | D2: Miesiąc 1 | E2: Miesiąc 2 | F2: Miesiąc 3 | G2: Miesiąc 4 | H2: Miesiąc 5 | I2: Miesiąc 6 | J2: Miesiąc 7 | K2: Miesiąc 8 | L2: Miesiąc 9 | M2: Miesiąc 10 | N2: Miesiąc 11 | O2: Miesiąc 12 | Q2: Suma
A3: W komórce z prawej strony znajduje się etykieta Planowana sprzedaż razem. W komórkach od D3 do O3 wprowadź planowaną sprzedaż dla każdego miesiąca. Suma jest obliczana automatycznie w komórce Q3. | B3: PLANOWANA SPRZEDAŻ RAZEM (000) zł | D3: 750 | E3: 200 | F3: 500 | G3: 1,500 | H3: 1,200 | I3: 1,500 | J3: 1,500 | K3: 1,800 | L3: 2,000 | M3: 2,000 | N3: 2,000 | O3: 2,000 | Q3: =SUM(D3:O3) -> 16,950
A4: Wprowadź szczegóły w tabeli Personel, zaczynając od komórki z prawej strony. Wartość Personel razem dla każdego miesiąca jest obliczana automatycznie na końcu tabeli, a roczna Suma znajduje się w komórce Q9. W komórce S9 jest aktualizowany wykres przebiegu w czasie. Dalsze instrukcje znajdują się w komórce A10. | B4: Personel — pozycje | C4: Stawka | D4: Miesiąc 1 | E4: Miesiąc 2 | F4: Miesiąc 3 | G4: Miesiąc 4 | H4: Miesiąc 5 | I4: Miesiąc 6 | J4: Miesiąc 7 | K4: Miesiąc 8 | L4: Miesiąc 9 | M4: Miesiąc 10 | N4: Miesiąc 11 | O4: Miesiąc 12
B5: PERSONEL (% CAŁKOWITEJ SPRZEDAŻY) | D5: =D11+D33+D41+D48 -> 110% | E5: 110% | F5: 110% | G5: 110% | H5: 110% | I5: 110% | J5: 110% | K5: 110% | L5: 85% | M5: 85% | N5: 85% | O5: 85%
B6: Kadry — liczba pracowników | C6: 5 | D6: =+$C$6 -> 5 | E6: 5 | F6: 5 | G6: 5 | H6: 5 | I6: 5 | J6: 5 | K6: 5 | L6: 5 | M6: 5 | N6: 5 | O6: 5
B7: Kadry — koszt | D7: =$C$6*D6 -> 25.00 | E7: 25.00 | F7: 25.00 | G7: 25.00 | H7: 25.00 | I7: 25.00 | J7: 25.00 | K7: 25.00 | L7: 25.00 | M7: 25.00 | N7: 25.00 | O7: 25.00 | Q7: =SUM('Budżet na marketing kanałowy'!$D7:$O7) -> 300.00
B8: Prowizja | C8: 0.10% | D8: =D3*$C$8 -> 0.75 | E8: 0.20 | F8: 0.50 | G8: 1.50 | H8: 1.20 | I8: 1.50 | J8: 1.50 | K8: 1.80 | L8: 2.00 | M8: 2.00 | N8: 2.00 | O8: 2.00 | Q8: =SUM('Budżet na marketing kanałowy'!$D8:$O8) -> 16.95
B9: Personel razem (000) zł | D9: =SUM(D7:D8) -> 25.75 | E9: =SUM(E7:E8) -> 25.20 | F9: 25.50 | G9: 26.50 | H9: 26.20 | I9: 26.50 | J9: 26.50 | K9: 26.80 | L9: 27.00 | M9: 27.00 | N9: 27.00 | O9: 27.00 | Q9: =SUM(Q7:Q8) -> 316.95
A10: Wprowadź szczegóły w tabeli Marketing bezpośredni, zaczynając od komórki z prawej strony. Wartość Telemarketing razem dla każdego miesiąca jest obliczana automatycznie na końcu tabeli, a roczna Suma znajduje się w komórce Q17. W komórce S17 jest aktualizowany wykres przebiegu w czasie. Dalsze instrukcje znajdują się w komórce A18. | B10: Marketing bezpośredni — pozycje | C10: Stawka | D10: Miesiąc 1 | E10: Miesiąc 2 | F10: Miesiąc 3 | G10: Miesiąc 4 | H10: Miesiąc 5 | I10: Miesiąc 6 | J10: Miesiąc 7 | K10: Miesiąc 8 | L10: Miesiąc 9 | M10: Miesiąc 10 | N10: Miesiąc 11 | O10: Miesiąc 12
B11: MARKETING BEZPOŚREDNI (% CAŁKOWITEJ SPRZEDAŻY) | D11: 100% | E11: 100% | F11: 75% | G11: 40% | H11: 33% | I11: 25% | J11: 20% | K11: 10% | L11: 5% | M11: 5% | N11: 5% | O11: 5%
B12: Telemarketing (% sprzedaży bezpośredniej) | D12: 100% | E12: 50% | F12: 50% | G12: 50% | H12: 50% | I12: 50% | J12: 50% | K12: 50% | L12: 50% | M12: 50% | N12: 50% | O12: 50%
B13: Kadry — liczba pracowników | C13: 3 | D13: =$C$13*D12 -> 3 | E13: 1.5 | F13: 1.5 | G13: 1.5 | H13: 1.5 | I13: 1.5 | J13: 1.5 | K13: 1.5 | L13: 1.5 | M13: 1.5 | N13: 1.5 | O13: 1.5 | Q13: =SUM('Budżet na marketing kanałowy'!$D13:$O13) -> 19.50
B14: Obsługa infrastruktury | D14: 25 | E14: 10 | F14: 25 | G14: 10 | H14: 25 | I14: 10 | J14: 25 | K14: 10 | L14: 25 | M14: 10 | N14: 25 | O14: 10 | Q14: =SUM('Budżet na marketing kanałowy'!$D14:$O14) -> 210.00
B15: Prowizja | C15: 0.10% | D15: =$C$15*D3*D11*D12 -> 0.75 | E15: 0.10 | F15: 0.19 | G15: 0.30 | H15: 0.20 | I15: 0.19 | J15: 0.15 | K15: 0.09 | L15: 0.05 | M15: 0.05 | N15: 0.05 | O15: 0.05 | Q15: =SUM('Budżet na marketing kanałowy'!$D15:$O15) -> 2.16
B16: Szkolenie | D16: 25 | E16: 10 | F16: 25 | G16: 10 | H16: 25 | I16: 10 | J16: 25 | K16: 10 | L16: 25 | M16: 10 | N16: 25 | O16: 10 | Q16: =SUM('Budżet na marketing kanałowy'!$D16:$O16) -> 210.00
B17: Telemarketing razem (000) zł | D17: =SUM(D13:D16) -> 53.75 | E17: =SUM(E13:E16) -> 21.60 | F17: =SUM(F13:F16) -> 51.69 | G17: 21.80 | H17: 51.70 | I17: 21.69 | J17: 51.65 | K17: 21.59 | L17: 51.55 | M17: 21.55 | N17: 51.55 | O17: 21.55 | Q17: =SUM(Q13:Q16) -> 441.66
A18: Wprowadź szczegóły w tabeli Marketing internetowy, zaczynając od komórki z prawej strony. Wartość Marketing internetowy razem dla każdego miesiąca jest obliczana automatycznie na końcu tabeli, a roczna Suma znajduje się w komórce Q24. W komórce S24 jest aktualizowany wykres przebiegu w czasie. Dalsze instrukcje znajdują się w komórce A25. | B18: Marketing internetowy — pozycje | C18: Stawka | D18: Miesiąc 1 | E18: Miesiąc 2 | F18: Miesiąc 3 | G18: Miesiąc 4 | H18: Miesiąc 5 | I18: Miesiąc 6 | J18: Miesiąc 7 | K18: Miesiąc 8 | L18: Miesiąc 9 | M18: Miesiąc 10 | N18: Miesiąc 11 | O18: Miesiąc 12
B19: Marketing internetowy (% sprzedaży bezpośredniej) | D19: 25% | E19: 25% | F19: 25% | G19: 25% | H19: 25% | I19: 25% | J19: 25% | K19: 25% | L19: 25% | M19: 25% | N19: 25% | O19: 25%
B20: Kadry — liczba pracowników | C20: 1 | D20: =$C$20*D19 -> 0.25 | E20: 0.25 | F20: 0.25 | G20: 0.25 | H20: 0.25 | I20: 0.25 | J20: 0.25 | K20: 0.25 | L20: 0.25 | M20: 0.25 | N20: 0.25 | O20: 0.25 | Q20: =SUM('Budżet na marketing kanałowy'!$D20:$O20) -> 3.00
B21: Opracowanie witryny internetowej (koszt jednorazowy) | D21: 500 | Q21: =SUM('Budżet na marketing kanałowy'!$D21:$O21) -> 500.00
B22: Hosting | D22: 10 | E22: 10 | F22: 10 | G22: 10 | H22: 10 | I22: 10 | J22: 10 | K22: 10 | L22: 10 | M22: 10 | N22: 10 | O22: 10 | Q22: =SUM('Budżet na marketing kanałowy'!$D22:$O22) -> 120.00
B23: Pomoc techniczna i konserwacja | D23: 25 | N23: 25 | Q23: =SUM('Budżet na marketing kanałowy'!$D23:$O23) -> 50.00
B24: Marketing internetowy razem (000) zł | D24: =SUM(D20:D23) -> 535.25 | E24: =SUM(E20:E23) -> 10.25 | F24: 10.25 | G24: 10.25 | H24: 10.25 | I24: 10.25 | J24: 10.25 | K24: 10.25 | L24: 10.25 | M24: 10.25 | N24: 35.25 | O24: 10.25 | Q24: =SUM(Q20:Q23) -> 673.00
A25: Wprowadź szczegóły w tabeli Reklamy wysyłane pocztą, zaczynając od komórki z prawej strony. Wartość Reklamy wysyłane pocztą razem dla każdego miesiąca jest obliczana automatycznie na końcu tabeli, a roczna Suma znajduje się w komórce Q30. Dalsze instrukcje znajdują się w komórce A31. | B25: Reklamy wysyłane pocztą — pozycje | C25: Stawka | D25: Miesiąc 1 | E25: Miesiąc 2 | F25: Miesiąc 3 | G25: Miesiąc 4 | H25: Miesiąc 5 | I25: Miesiąc 6 | J25: Miesiąc 7 | K25: Miesiąc 8 | L25: Miesiąc 9 | M25: Miesiąc 10 | N25: Miesiąc 11 | O25: Miesiąc 12
B26: Reklamy wysyłane pocztą (% sprzedaży bezpośredniej)
B27: Kadry — koszt | Q27: =SUM('Budżet na marketing kanałowy'!$D27:$O27) -> 0.00
B28: Materiały | D28: 1000 | E28: 1000 | F28: 1000 | G28: 1000 | H28: 1000 | I28: 1000 | J28: 1000 | K28: 1000 | L28: 1000 | M28: 1000 | N28: 1000 | O28: 1000 | Q28: =SUM('Budżet na marketing kanałowy'!$D28:$O28) -> 12,000.00
B29: Opłaty pocztowe | D29: 250 | E29: 250 | F29: 250 | G29: 250 | H29: 250 | I29: 250 | J29: 250 | K29: 250 | L29: 250 | M29: 250 | N29: 250 | O29: 250 | Q29: =SUM('Budżet na marketing kanałowy'!$D29:$O29) -> 3,000.00
B30: Reklamy wysyłane pocztą razem (000) zł | D30: =SUM(D27:D29) -> 1,250.00 | E30: =SUM(E27:E29) -> 1,250.00 | F30: 1,250.00 | G30: 1,250.00 | H30: 1,250.00 | I30: 1,250.00 | J30: 1,250.00 | K30: 1,250.00 | L30: 1,250.00 | M30: 1,250.00 | N30: 1,250.00 | O30: 1,250.00 | Q30: =SUM(Q27:Q29) -> 15,000.00
A31: Wartość Marketing bezpośredni razem jest obliczana automatycznie w tym wierszu w komórkach od D31 do O31, a roczna Suma znajduje się w komórce Q31. W komórce S31 jest aktualizowany wykres przebiegu w czasie. | B31: Marketing bezpośredni razem (000) zł | D31: =SUM(Reklamy_wysyłane_pocztą[[#Totals],[Miesiąc 1]],Marketing_internetowy[[#Totals],[Miesiąc 1]],Marketing_bezpośredni[[#Totals],[Miesiąc 1]]) -> 1,839.00 | E31: =SUM(Reklamy_wysyłane_pocztą[[#Totals],[Miesiąc 2]],Marketing_internetowy[[#Totals],[Miesiąc 2]],Marketing_bezpośredni[[#Totals],[Miesiąc 2]]) -> 1,281.85 | F31: =SUM(Reklamy_wysyłane_pocztą[[#Totals],[Miesiąc 3]],Marketing_internetowy[[#Totals],[Miesiąc 3]],Marketing_bezpośredni[[#Totals],[Miesiąc 3]]) -> 1,311.94 | G31: =SUM(Reklamy_wysyłane_pocztą[[#Totals],[Miesiąc 4]],Marketing_internetowy[[#Totals],[Miesiąc 4]],Marketing_bezpośredni[[#Totals],[Miesiąc 4]]) -> 1,282.05 | H31: =SUM(Reklamy_wysyłane_pocztą[[#Totals],[Miesiąc 5]],Marketing_internetowy[[#Totals],[Miesiąc 5]],Marketing_bezpośredni[[#Totals],[Miesiąc 5]]) -> 1,311.95 | I31: =SUM(Reklamy_wysyłane_pocztą[[#Totals],[Miesiąc 6]],Marketing_internetowy[[#Totals],[Miesiąc 6]],Marketing_bezpośredni[[#Totals],[Miesiąc 6]]) -> 1,281.94 | J31: =SUM(Reklamy_wysyłane_pocztą[[#Totals],[Miesiąc 7]],Marketing_internetowy[[#Totals],[Miesiąc 7]],Marketing_bezpośredni[[#Totals],[Miesiąc 7]]) -> 1,311.90 | K31: =SUM(Reklamy_wysyłane_pocztą[[#Totals],[Miesiąc 8]],Marketing_internetowy[[#Totals],[Miesiąc 8]],Marketing_bezpośredni[[#Totals],[Miesiąc 8]]) -> 1,281.84 | L31: =SUM(Reklamy_wysyłane_pocztą[[#Totals],[Miesiąc 9]],Marketing_internetowy[[#Totals],[Miesiąc 9]],Marketing_bezpośredni[[#Totals],[Miesiąc 9]]) -> 1,311.80 | M31: =SUM(Reklamy_wysyłane_pocztą[[#Totals],[Miesiąc 10]],Marketing_internetowy[[#Totals],[Miesiąc 10]],Marketing_bezpośredni[[#Totals],[Miesiąc 10]]) -> 1,281.80 | N31: =SUM(Reklamy_wysyłane_pocztą[[#Totals],[Miesiąc 11]],Marketing_internetowy[[#Totals],[Miesiąc 11]],Marketing_bezpośredni[[#Totals],[Miesiąc 11]]) -> 1,336.80 | O31: =SUM(Reklamy_wysyłane_pocztą[[#Totals],[Miesiąc 12]],Marketing_internetowy[[#Totals],[Miesiąc 12]],Marketing_bezpośredni[[#Totals],[Miesiąc 12]]) -> 1,281.80 | Q31: =SUM(Q30,Q24,Q17,Q9) -> 16,431.61
A32: Wprowadź szczegóły w tabeli Agent i broker, zaczynając od komórki z prawej strony. Wartość Agent/Broker razem dla każdego miesiąca jest obliczana automatycznie na końcu tabeli, a roczna Suma znajduje się w komórce Q39. W komórce S39 jest aktualizowany wykres przebiegu w czasie. Dalsze instrukcje znajdują się w komórce A40. | B32: Agent/Broker — pozycje | C32: Stawka | D32: Miesiąc 1 | E32: Miesiąc 2 | F32: Miesiąc 3 | G32: Miesiąc 4 | H32: Miesiąc 5 | I32: Miesiąc 6 | J32: Miesiąc 7 | K32: Miesiąc 8 | L32: Miesiąc 9 | M32: Miesiąc 10 | N32: Miesiąc 11 | O32: Miesiąc 12
B33: AGENT/BROKER (% CAŁKOWITEJ SPRZEDAŻY) | D33: 10% | E33: 10% | F33: 10% | G33: 10% | H33: 10% | I33: 10% | J33: 10% | K33: 10% | L33: 10% | M33: 10% | N33: 10% | O33: 10%
B34: Komunikacja | D34: 50 | E34: 50 | F34: 50 | G34: 50 | H34: 50 | I34: 50 | J34: 50 | K34: 50 | L34: 50 | M34: 50 | N34: 50 | O34: 50 | Q34: =SUM('Budżet na marketing kanałowy'!$D34:$O34) -> 600.00
B35: Szkolenie | D35: 250.00 | E35: 250.00 | F35: 250.00 | G35: 250.00 | H35: 250.00 | I35: 250.00 | J35: 250.00 | K35: 250.00 | L35: 250.00 | M35: 250.00 | N35: 250.00 | O35: 250.00 | Q35: =SUM('Budżet na marketing kanałowy'!$D35:$O35) -> 3,000.00
B36: Promocje | D36: 600.00 | E36: 600.00 | F36: 600.00 | G36: 600.00 | H36: 600.00 | I36: 600.00 | J36: 600.00 | K36: 600.00 | L36: 600.00 | M36: 600.00 | N36: 600.00 | O36: 600.00 | Q36: =SUM('Budżet na marketing kanałowy'!$D36:$O36) -> 7,200.00
B37: Rabaty | C37: 10.00% | D37: =D3*D33*$C$37 -> 7.50 | E37: 2.00 | F37: 5.00 | G37: 15.00 | H37: 12.00 | I37: 15.00 | J37: 15.00 | K37: 18.00 | L37: 20.00 | M37: 20.00 | N37: 20.00 | O37: 20.00 | Q37: =SUM('Budżet na marketing kanałowy'!$D37:$O37) -> 169.50
B38: Prowizja (% sprzedaży agenta) | C38: 10.00% | D38: =D3*D33*$C$38 -> 7.50 | E38: 2.00 | F38: 5.00 | G38: 15.00 | H38: 12.00 | I38: 15.00 | J38: 15.00 | K38: 18.00 | L38: 20.00 | M38: 20.00 | N38: 20.00 | O38: 20.00 | Q38: =SUM('Budżet na marketing kanałowy'!$D38:$O38) -> 169.50
B39: Agent/Broker razem (000) zł | D39: =SUM(D34:D38) -> 915.00 | E39: =SUM(E34:E38) -> 904.00 | F39: 910.00 | G39: 930.00 | H39: 924.00 | I39: 930.00 | J39: 930.00 | K39: 936.00 | L39: 940.00 | M39: 940.00 | N39: 940.00 | O39: 940.00 | Q39: =SUM(Q34:Q38) -> 11,139.00
A40: Wprowadź szczegóły w tabeli Dystrybutorzy zaczynając od komórki z prawej strony. Wartość Dystrybutor razem dla każdego miesiąca jest obliczana automatycznie na końcu tabeli, a roczna Suma znajduje się w komórce Q46. W komórce S46 jest aktualizowany wykres przebiegu w czasie. Dalsze instrukcje znajdują się w komórce A47. | B40: Dystrybutor — pozycje | C40: Stawka | D40: Miesiąc 1 | E40: Miesiąc 2 | F40: Miesiąc 3 | G40: Miesiąc 4 | H40: Miesiąc 5 | I40: Miesiąc 6 | J40: Miesiąc 7 | K40: Miesiąc 8 | L40: Miesiąc 9 | M40: Miesiąc 10 | N40: Miesiąc 11 | O40: Miesiąc 12
B41: DYSTRYBUTORZY (% CAŁKOWITEJ SPRZEDAŻY) | D41: 0% | E41: 0% | F41: 0% | G41: 0% | H41: 0% | I41: 15% | J41: 20% | K41: 40% | L41: 40% | M41: 40% | N41: 40% | O41: 40%
B42: Komunikacja | D42: 50 | E42: 50 | F42: 50 | G42: 50 | H42: 50 | I42: 50 | J42: 50 | K42: 50 | L42: 50 | M42: 50 | N42: 50 | O42: 50 | Q42: =SUM('Budżet na marketing kanałowy'!$D42:$O42) -> 600.00
B43: Szkolenie | D43: 250.00 | E43: 250.00 | F43: 250.00 | G43: 250.00 | H43: 250.00 | I43: 250.00 | J43: 250.00 | K43: 250.00 | L43: 250.00 | M43: 250.00 | N43: 250.00 | O43: 250.00 | Q43: =SUM('Budżet na marketing kanałowy'!$D43:$O43) -> 3,000.00
B44: Promocje | D44: 600.00 | E44: 600.00 | F44: 600.00 | G44: 600.00 | H44: 600.00 | I44: 600.00 | J44: 600.00 | K44: 600.00 | L44: 600.00 | M44: 600.00 | N44: 600.00 | O44: 600.00 | Q44: =SUM('Budżet na marketing kanałowy'!$D44:$O44) -> 7,200.00
B45: Prowizja/Rabaty (% sprzedaży dystrybutora) | C45: 15.00% | D45: =D3*D41*$C$45 -> 0 | E45: 0 | F45: 0 | G45: 0 | H45: 0 | I45: 33.75 | J45: 45 | K45: 108 | L45: 120 | M45: 120 | N45: 120 | O45: 120 | Q45: =SUM('Budżet na marketing kanałowy'!$D45:$O45) -> 666.75
B46: Dystrybutor razem (000) zł | D46: =SUM(D42:D45) -> 900.00 | E46: =SUM(E42:E45) -> 900.00 | F46: 900.00 | G46: 900.00 | H46: 900.00 | I46: 933.75 | J46: 945.00 | K46: 1,008.00 | L46: 1,020.00 | M46: 1,020.00 | N46: 1,020.00 | O46: 1,020.00 | Q46: =SUM(Q42:Q45) -> 11,466.75
A47: Wprowadź szczegóły w tabeli Sprzedawcy detaliczni, zaczynając od komórki z prawej strony. Wartość Sprzedawca detaliczny razem dla każdego miesiąca jest obliczana automatycznie na końcu tabeli, a roczna Suma znajduje się w komórce Q53. W komórce S53 jest aktualizowany wykres przebiegu w czasie. Dalsze instrukcje znajdują się w komórce A54. | B47: Sprzedawca detaliczny — pozycje | C47: Stawka | D47: Miesiąc 1 | E47: Miesiąc 2 | F47: Miesiąc 3 | G47: Miesiąc 4 | H47: Miesiąc 5 | I47: Miesiąc 6 | J47: Miesiąc 7 | K47: Miesiąc 8 | L47: Miesiąc 9 | M47: Miesiąc 10 | N47: Miesiąc 11 | O47: Miesiąc 12
B48: SPRZEDAWCA DETALICZNY (% CAŁKOWITEJ SPRZEDAŻY) | D48: 0% | E48: 0% | F48: 25% | G48: 60% | H48: 67% | I48: 60% | J48: 60% | K48: 50% | L48: 30% | M48: 30% | N48: 30% | O48: 30%
B49: Komunikacja | D49: 50 | E49: 50 | F49: 50 | G49: 50 | H49: 50 | I49: 50 | J49: 50 | K49: 50 | L49: 50 | M49: 50 | N49: 50 | O49: 50
B50: Szkolenie | D50: 250.00 | E50: 250.00 | F50: 250.00 | G50: 250.00 | H50: 250.00 | I50: 250.00 | J50: 250.00 | K50: 250.00 | L50: 250.00 | M50: 250.00 | N50: 250.00 | O50: 250.00 | Q50: =SUM('Budżet na marketing kanałowy'!$D49:$O49) -> 600.00
B51: Promocje | D51: 600.00 | E51: 600.00 | F51: 600.00 | G51: 600.00 | H51: 600.00 | I51: 600.00 | J51: 600.00 | K51: 600.00 | L51: 600.00 | M51: 600.00 | N51: 600.00 | O51: 600.00 | Q51: =SUM('Budżet na marketing kanałowy'!$D50:$O50) -> 3,000.00
B52: Prowizja/Rabaty (% sprzedaży detalicznej) | C52: 10.00% | D52: =D3*D48*$C$52 -> 0 | E52: 0 | F52: 12.5 | G52: 90 | H52: 80.4 | I52: 90 | J52: 90 | K52: 90 | L52: 60 | M52: 60 | N52: 60 | O52: 60 | Q52: =SUM('Budżet na marketing kanałowy'!$D52:$O52) -> 692.90
B53: Sprzedawca detaliczny razem (000) zł | D53: =SUM(D49:D52) -> 900.00 | E53: =SUM(E49:E52) -> 900.00 | F53: 912.50 | G53: 990.00 | H53: 980.40 | I53: 990.00 | J53: 990.00 | K53: 990.00 | L53: 960.00 | M53: 960.00 | N53: 960.00 | O53: 960.00 | Q53: =SUM(Q50:Q52) -> 4,292.90
A54: Wprowadź szczegóły w tabeli Pozyskiwanie i utrzymywanie klientów, zaczynając od komórki z prawej strony. Wartość Pozyskiwanie i utrzymywanie klientów razem dla każdego miesiąca jest obliczana automatycznie na końcu tabeli, a roczna Suma znajduje się w komórce Q59. W komórce S59 jest aktualizowany wykres przebiegu w czasie. Dalsze instrukcje znajdują się w komórce A60. | B54: Pozyskiwanie i utrzymywanie klientów — pozycje | C54: Stawka | D54: Miesiąc 1 | E54: Miesiąc 2 | F54: Miesiąc 3 | G54: Miesiąc 4 | H54: Miesiąc 5 | I54: Miesiąc 6 | J54: Miesiąc 7 | K54: Miesiąc 8 | L54: Miesiąc 9 | M54: Miesiąc 10 | N54: Miesiąc 11 | O54: Miesiąc 12
B55: POZYSKIWANIE I UTRZYMYWANIE KLIENTÓW
B56: Kadry | D56: 50 | E56: 50 | F56: 50 | G56: 50 | H56: 50 | I56: 50 | J56: 50 | K56: 50 | L56: 50 | M56: 50 | N56: 50 | O56: 50 | Q56: =SUM('Budżet na marketing kanałowy'!$D56:$O56) -> 600.00
B57: Komunikacja | D57: 250.00 | E57: 250.00 | F57: 250.00 | G57: 250.00 | H57: 250.00 | I57: 250.00 | J57: 250.00 | K57: 250.00 | L57: 250.00 | M57: 250.00 | N57: 250.00 | O57: 250.00 | Q57: =SUM('Budżet na marketing kanałowy'!$D57:$O57) -> 3,000.00
B58: Promocje/Kupony | D58: 600 | E58: 600 | F58: 600 | G58: 600 | H58: 600 | I58: 600 | J58: 600 | K58: 600 | L58: 600 | M58: 600 | N58: 600 | O58: 600 | Q58: =SUM('Budżet na marketing kanałowy'!$D58:$O58) -> 7,200.00
B59: Pozyskiwanie i utrzymywanie klientów razem (000) zł | D59: =SUM(D56:D58) -> 900.00 | E59: =SUM(E56:E58) -> 900.00 | F59: 900.00 | G59: 900.00 | H59: 900.00 | I59: 900.00 | J59: 900.00 | K59: 900.00 | L59: 900.00 | M59: 900.00 | N59: 900.00 | O59: 900.00 | Q59: =SUM(Q56:Q58) -> 10,800.00
A60: Wprowadź szczegóły w tabeli Inne wydatki, zaczynając od komórki z prawej strony. Wartość Inne wydatki razem dla każdego miesiąca jest obliczana automatycznie na końcu tabeli, a roczna Suma znajduje się w komórce Q65. W komórce S65 jest aktualizowany wykres przebiegu w czasie. Dalsze instrukcje znajdują się w komórce A67. | B60: Inne wydatki — pozycje | C60: Stawka | D60: Miesiąc 1 | E60: Miesiąc 2 | F60: Miesiąc 3 | G60: Miesiąc 4 | H60: Miesiąc 5 | I60: Miesiąc 6 | J60: Miesiąc 7 | K60: Miesiąc 8 | L60: Miesiąc 9 | M60: Miesiąc 10 | N60: Miesiąc 11 | O60: Miesiąc 12
B61: INNE WYDATKI
B62: Wydatki | D62: 50 | E62: 50 | F62: 50 | G62: 50 | H62: 50 | I62: 50 | J62: 50 | K62: 50 | L62: 50 | M62: 50 | N62: 50 | O62: 50 | Q62: =SUM('Budżet na marketing kanałowy'!$D62:$O62) -> 600.00
B63: Infrastruktura (komputer, telefon itp.) | D63: 250.00 | E63: 250.00 | F63: 250.00 | G63: 250.00 | H63: 250.00 | I63: 250.00 | J63: 250.00 | K63: 250.00 | L63: 250.00 | M63: 250.00 | N63: 250.00 | O63: 250.00 | Q63: =SUM('Budżet na marketing kanałowy'!$D63:$O63) -> 3,000.00
B64: Obsługa kanału | D64: 600 | E64: 600 | F64: 600 | G64: 600 | H64: 600 | I64: 600 | J64: 600 | K64: 600 | L64: 600 | M64: 600 | N64: 600 | O64: 600 | Q64: =SUM('Budżet na marketing kanałowy'!$D64:$O64) -> 7,200.00
B65: Inne wydatki razem (000) zł | D65: =SUM(D62:D64) -> 900.00 | E65: =SUM(E62:E64) -> 900.00 | F65: 900.00 | G65: 900.00 | H65: 900.00 | I65: 900.00 | J65: 900.00 | K65: 900.00 | L65: 900.00 | M65: 900.00 | N65: 900.00 | O65: 900.00 | Q65: =SUM(Q62:Q64) -> 10,800.00
A67: Wartość Całkowity budżet na marketing jest obliczana automatycznie dla każdego miesiąca w tym wierszu w komórkach od D67 do O67, a roczna Suma znajduje się w komórce Q67. W komórce S67 jest automatycznie aktualizowany wykres przebiegu w czasie. | B67: CAŁKOWITY BUDŻET NA MARKETING: | D67: =SUM(Inne_wydatki[[#Totals],[Miesiąc 1]],Pozyskiwanie_i_utrzymywanie_klientów[[#Totals],[Miesiąc 1]],Sprzedawca_detaliczny[[#Totals],[Miesiąc 1]],Dystrybutorzy[[#Totals],[Miesiąc 1]],Agent_i_broker[[#Totals],[Miesiąc 1]],D31) -> 6,354.00 | E67: =SUM(Inne_wydatki[[#Totals],[Miesiąc 2]],Pozyskiwanie_i_utrzymywanie_klientów[[#Totals],[Miesiąc 2]],Sprzedawca_detaliczny[[#Totals],[Miesiąc 2]],Dystrybutorzy[[#Totals],[Miesiąc 2]],Agent_i_broker[[#Totals],[Miesiąc 2]],E31) -> 5,785.85 | F67: =SUM(Inne_wydatki[[#Totals],[Miesiąc 3]],Pozyskiwanie_i_utrzymywanie_klientów[[#Totals],[Miesiąc 3]],Sprzedawca_detaliczny[[#Totals],[Miesiąc 3]],Dystrybutorzy[[#Totals],[Miesiąc 3]],Agent_i_broker[[#Totals],[Miesiąc 3]],F31) -> 5,834.44 | G67: =SUM(Inne_wydatki[[#Totals],[Miesiąc 4]],Pozyskiwanie_i_utrzymywanie_klientów[[#Totals],[Miesiąc 4]],Sprzedawca_detaliczny[[#Totals],[Miesiąc 4]],Dystrybutorzy[[#Totals],[Miesiąc 4]],Agent_i_broker[[#Totals],[Miesiąc 4]],G31) -> 5,902.05 | H67: =SUM(Inne_wydatki[[#Totals],[Miesiąc 5]],Pozyskiwanie_i_utrzymywanie_klientów[[#Totals],[Miesiąc 5]],Sprzedawca_detaliczny[[#Totals],[Miesiąc 5]],Dystrybutorzy[[#Totals],[Miesiąc 5]],Agent_i_broker[[#Totals],[Miesiąc 5]],H31) -> 5,916.35 | I67: =SUM(Inne_wydatki[[#Totals],[Miesiąc 6]],Pozyskiwanie_i_utrzymywanie_klientów[[#Totals],[Miesiąc 6]],Sprzedawca_detaliczny[[#Totals],[Miesiąc 6]],Dystrybutorzy[[#Totals],[Miesiąc 6]],Agent_i_broker[[#Totals],[Miesiąc 6]],I31) -> 5,935.69 | J67: =SUM(Inne_wydatki[[#Totals],[Miesiąc 7]],Pozyskiwanie_i_utrzymywanie_klientów[[#Totals],[Miesiąc 7]],Sprzedawca_detaliczny[[#Totals],[Miesiąc 7]],Dystrybutorzy[[#Totals],[Miesiąc 7]],Agent_i_broker[[#Totals],[Miesiąc 7]],J31) -> 5,976.90 | K67: =SUM(Inne_wydatki[[#Totals],[Miesiąc 8]],Pozyskiwanie_i_utrzymywanie_klientów[[#Totals],[Miesiąc 8]],Sprzedawca_detaliczny[[#Totals],[Miesiąc 8]],Dystrybutorzy[[#Totals],[Miesiąc 8]],Agent_i_broker[[#Totals],[Miesiąc 8]],K31) -> 6,015.84 | L67: =SUM(Inne_wydatki[[#Totals],[Miesiąc 9]],Pozyskiwanie_i_utrzymywanie_klientów[[#Totals],[Miesiąc 9]],Sprzedawca_detaliczny[[#Totals],[Miesiąc 9]],Dystrybutorzy[[#Totals],[Miesiąc 9]],Agent_i_broker[[#Totals],[Miesiąc 9]],L31) -> 6,031.80 | M67: =SUM(Inne_wydatki[[#Totals],[Miesiąc 10]],Pozyskiwanie_i_utrzymywanie_klientów[[#Totals],[Miesiąc 10]],Sprzedawca_detaliczny[[#Totals],[Miesiąc 10]],Dystrybutorzy[[#Totals],[Miesiąc 10]],Agent_i_broker[[#Totals],[Miesiąc 10]],M31) -> 6,001.80 | N67: =SUM(Inne_wydatki[[#Totals],[Miesiąc 11]],Pozyskiwanie_i_utrzymywanie_klientów[[#Totals],[Miesiąc 11]],Sprzedawca_detaliczny[[#Totals],[Miesiąc 11]],Dystrybutorzy[[#Totals],[Miesiąc 11]],Agent_i_broker[[#Totals],[Miesiąc 11]],N31) -> 6,056.80 | O67: =SUM(Inne_wydatki[[#Totals],[Miesiąc 12]],Pozyskiwanie_i_utrzymywanie_klientów[[#Totals],[Miesiąc 12]],Sprzedawca_detaliczny[[#Totals],[Miesiąc 12]],Dystrybutorzy[[#Totals],[Miesiąc 12]],Agent_i_broker[[#Totals],[Miesiąc 12]],O31) -> 6,001.80 | Q67: =SUM(D67:O67) -> 71,813.31
